[Event "Late-Titled-Tuesday-Blitz-May-28-2024"]
[Site "Chess.com"]
[Date "2024.05.28"]
[Round "7"]
[White "HowTo2Draw"]
[Black "GMG"]
[Result "1-0"]
[WhiteElo "2609"]
[BlackElo "2801"]
[TimeControl "180+1"]
[EndTime "15:16:57 PDT"]
[Termination "HowTo2Draw won by resignation"]

1. c4 {[%clk 0:02:53.8]} 1... e5 {[%clk 0:02:59.1]} 2. Nc3 {[%clk 0:02:49.9]}
2... Bb4 {[%clk 0:02:59]} 3. e4 {[%clk 0:02:33.7]} 3... Nc6 {[%clk 0:02:50.9]}
4. Bd3 {[%clk 0:02:30.9]} 4... d6 {[%clk 0:02:44.9]} 5. Nge2 {[%clk 0:02:26.7]}
5... Qg5 {[%clk 0:02:41.8]} 6. O-O {[%clk 0:02:21.9]} 6... Nge7 {[%clk
0:02:41.3]} 7. Bc2 {[%clk 0:02:20.1]} 7... Qh4 {[%clk 0:02:12.7]} 8. Nd5 {[%clk
0:02:13.1]} 8... Ba5 {[%clk 0:02:09.5]} 9. d4 {[%clk 0:02:06.1]} 9... O-O {[%clk
0:02:06.3]} 10. Be3 {[%clk 0:01:56]} 10... h6 {[%clk 0:01:41.9]} 11. a3 {[%clk
0:01:46.9]} 11... exd4 {[%clk 0:01:31.9]} 12. Nxd4 {[%clk 0:01:46.3]} 12... Nxd5
{[%clk 0:01:25.8]} 13. cxd5 {[%clk 0:01:14.5]} 13... Nxd4 {[%clk 0:01:22.1]} 14.
Bxd4 {[%clk 0:01:07.5]} 14... f5 {[%clk 0:01:11.6]} 15. e5 {[%clk 0:01:03.7]}
15... dxe5 {[%clk 0:01:05.5]} 16. Bxe5 {[%clk 0:01:03.6]} 16... Bb6 {[%clk
0:01:03]} 17. Qd3 {[%clk 0:00:54.9]} 17... Bd7 {[%clk 0:01:02.2]} 18. Kh1 {[%clk
0:00:47.6]} 18... Rae8 {[%clk 0:01:01.3]} 19. f4 {[%clk 0:00:46]} 19... a6
{[%clk 0:01:00.9]} 20. a4 {[%clk 0:00:41]} 20... a5 {[%clk 0:00:52.8]} 21. Bb3
{[%clk 0:00:34]} 21... Kh7 {[%clk 0:00:50.8]} 22. Rac1 {[%clk 0:00:34.6]} 22...
Rc8 {[%clk 0:00:49.6]} 23. Rc3 {[%clk 0:00:28.4]} 23... c6 {[%clk 0:00:41.5]}
24. d6 {[%clk 0:00:28.7]} 24... Rce8 {[%clk 0:00:39.2]} 25. Bc2 {[%clk
0:00:27.2]} 25... Re6 {[%clk 0:00:34.2]} 26. Rb3 {[%clk 0:00:26.4]} 26... Bc5
{[%clk 0:00:29.2]} 27. Rxb7 {[%clk 0:00:25.7]} 27... Rxe5 {[%clk 0:00:22.9]} 28.
fxe5 {[%clk 0:00:23.4]} 28... Be6 {[%clk 0:00:23.4]} 29. Qg3 {[%clk 0:00:21.7]}
1-0

[Event "Late-Titled-Tuesday-Blitz-May-28-2024"]
[Site "Chess.com"]
[Date "2024.05.28"]
[Round "7"]
[White "ploxoi"]
[Black "N_I_Chess"]
[Result "1-0"]
[WhiteElo "2419"]
[BlackElo "2258"]
[TimeControl "180+1"]
[EndTime "15:16:57 PDT"]
[Termination "ploxoi won on time"]

1. d4 {[%clk 0:03:00.9]} 1... Nf6 {[%clk 0:02:59.6]} 2. c4 {[%clk 0:03:00.6]}
2... e6 {[%clk 0:02:52.1]} 3. g3 {[%clk 0:03:00.4]} 3... d5 {[%clk 0:02:49.2]}
4. Bg2 {[%clk 0:03:00.4]} 4... Nc6 {[%clk 0:02:47.2]} 5. Nf3 {[%clk 0:02:56.1]}
5... dxc4 {[%clk 0:02:44.9]} 6. O-O {[%clk 0:02:53]} 6... Bd6 {[%clk 0:02:43.2]}
7. Nbd2 {[%clk 0:02:50.8]} 7... c3 {[%clk 0:02:21.8]} 8. bxc3 {[%clk 0:02:49.7]}
8... e5 {[%clk 0:02:18.8]} 9. Nc4 {[%clk 0:02:47.2]} 9... e4 {[%clk 0:02:01.9]}
10. Ng5 {[%clk 0:02:33]} 10... Qe7 {[%clk 0:01:45]} 11. Nxd6+ {[%clk 0:02:21.8]}
11... cxd6 {[%clk 0:01:42.9]} 12. Ba3 {[%clk 0:02:11.3]} 12... O-O {[%clk
0:01:39.6]} 13. e3 {[%clk 0:02:02.4]} 13... h6 {[%clk 0:01:23.7]} 14. Nh3 {[%clk
0:02:01.6]} 14... Bg4 {[%clk 0:01:05.2]} 15. Qc2 {[%clk 0:01:49.2]} 15... g5
{[%clk 0:00:39.6]} 16. Kh1 {[%clk 0:01:20.3]} 16... Rfc8 {[%clk 0:00:26]} 17.
Ng1 {[%clk 0:01:14.1]} 17... Qe6 {[%clk 0:00:21.2]} 18. Qb3 {[%clk 0:00:58.5]}
18... Qxb3 {[%clk 0:00:15.4]} 19. axb3 {[%clk 0:00:59.4]} 19... d5 {[%clk
0:00:16.1]} 20. Rfc1 {[%clk 0:00:54.3]} 20... b5 {[%clk 0:00:16.1]} 21. Bc5
{[%clk 0:00:53.5]} 21... a5 {[%clk 0:00:15.9]} 22. c4 {[%clk 0:00:49.4]} 22...
dxc4 {[%clk 0:00:07.8]} 23. bxc4 {[%clk 0:00:50.3]} 23... b4 {[%clk 0:00:07.1]}
24. d5 {[%clk 0:00:47.6]} 24... Ne5 {[%clk 0:00:06.9]} 25. Bd4 {[%clk
0:00:47.2]} 25... Nfd7 {[%clk 0:00:07]} 26. c5 {[%clk 0:00:46.6]} 26... Nd3
{[%clk 0:00:06.3]} 27. Rc4 {[%clk 0:00:43.5]} 27... Nb6 {[%clk 0:00:03.2]} 28.
Rc2 {[%clk 0:00:34.6]} 28... b3 {[%clk 0:00:01]} 29. Rd2 {[%clk 0:00:34.9]} 1-0

[Event "Late-Titled-Tuesday-Blitz-May-28-2024"]
[Site "Chess.com"]
[Date "2024.05.28"]
[Round "7"]
[White "Eloist"]
[Black "glucolisis04"]
[Result "1-0"]
[WhiteElo "2448"]
[BlackElo "2275"]
[TimeControl "180+1"]
[EndTime "15:17:01 PDT"]
[Termination "Eloist won by resignation"]

1. e4 {[%clk 0:03:00.9]} 1... c5 {[%clk 0:02:58.7]} 2. Nf3 {[%clk 0:03:00.3]}
2... Nc6 {[%clk 0:02:58.9]} 3. Bb5 {[%clk 0:02:59.4]} 3... Nf6 {[%clk
0:02:58.3]} 4. Bxc6 {[%clk 0:02:58.6]} 4... dxc6 {[%clk 0:02:58.2]} 5. d3 {[%clk
0:02:57.4]} 5... Nd7 {[%clk 0:02:45.5]} 6. e5 {[%clk 0:02:54]} 6... Qc7 {[%clk
0:02:29.2]} 7. Qe2 {[%clk 0:02:53.4]} 7... e6 {[%clk 0:02:18.7]} 8. Bg5 {[%clk
0:02:50.4]} 8... b5 {[%clk 0:01:59.7]} 9. c4 {[%clk 0:02:44.6]} 9... a5 {[%clk
0:01:57.9]} 10. Nc3 {[%clk 0:02:33.6]} 10... Ba6 {[%clk 0:01:47.8]} 11. a4
{[%clk 0:02:32.6]} 11... bxc4 {[%clk 0:01:35.9]} 12. dxc4 {[%clk 0:02:32.2]}
12... Rb8 {[%clk 0:01:35.9]} 13. O-O {[%clk 0:02:14.1]} 13... Rb4 {[%clk
0:01:35.5]} 14. b3 {[%clk 0:01:34.7]} 14... Rxb3 {[%clk 0:01:24.1]} 15. Rac1
{[%clk 0:01:30]} 15... Rb4 {[%clk 0:01:12.4]} 16. Ne4 {[%clk 0:01:26.1]} 16...
Nxe5 {[%clk 0:00:53.1]} 17. Bf4 {[%clk 0:01:23.5]} 17... Nxf3+ {[%clk
0:00:45.5]} 18. Qxf3 {[%clk 0:01:23.5]} 18... Qd8 {[%clk 0:00:20.6]} 19. Rfd1
{[%clk 0:01:21]} 19... Qc8 {[%clk 0:00:08.9]} 20. Nd6+ {[%clk 0:01:09.7]} 20...
Bxd6 {[%clk 0:00:09.5]} 21. Bxd6 {[%clk 0:01:09.7]} 21... Rxc4 {[%clk
0:00:10.2]} 22. Qg3 {[%clk 0:00:58.3]} 22... Rxc1 {[%clk 0:00:09.7]} 23. Rxc1
{[%clk 0:00:57.9]} 23... g6 {[%clk 0:00:03.7]} 24. Qe5 {[%clk 0:00:54.7]} 24...
Rg8 {[%clk 0:00:02.5]} 25. Bxc5 {[%clk 0:00:50.6]} 25... Qd7 {[%clk 0:00:02.1]}
26. Qb8+ {[%clk 0:00:47.7]} 26... Qd8 {[%clk 0:00:02.3]} 27. Qa7 {[%clk
0:00:45.2]} 27... Bd3 {[%clk 0:00:01.8]} 28. Rd1 {[%clk 0:00:44]} 28... Qd7
{[%clk 0:00:00.9]} 29. Qxd7+ {[%clk 0:00:42.7]} 29... Kxd7 {[%clk 0:00:01.8]}
30. Rxd3+ {[%clk 0:00:42.9]} 30... Kc7 {[%clk 0:00:02.5]} 31. Kf1 {[%clk
0:00:41.7]} 31... Rb8 {[%clk 0:00:02.4]} 32. Bd6+ {[%clk 0:00:41.3]} 1-0

[Event "Late-Titled-Tuesday-Blitz-May-28-2024"]
[Site "Chess.com"]
[Date "2024.05.28"]
[Round "7"]
[White "NikitaShnadrygin"]
[Black "TheDiscoOne"]
[Result "1-0"]
[WhiteElo "2725"]
[BlackElo "2514"]
[TimeControl "180+1"]
[EndTime "15:17:03 PDT"]
[Termination "NikitaShnadrygin won by checkmate"]

1. Nf3 {[%clk 0:02:48.5]} 1... d5 {[%clk 0:02:55.4]} 2. g3 {[%clk 0:02:49]} 2...
Nf6 {[%clk 0:02:53.2]} 3. Bg2 {[%clk 0:02:49.4]} 3... e6 {[%clk 0:02:53.7]} 4.
O-O {[%clk 0:02:50]} 4... Be7 {[%clk 0:02:54.2]} 5. d4 {[%clk 0:02:50.9]} 5...
O-O {[%clk 0:02:54.4]} 6. b3 {[%clk 0:02:51.8]} 6... b6 {[%clk 0:02:47.9]} 7.
Bb2 {[%clk 0:02:51.6]} 7... Bb7 {[%clk 0:02:48.4]} 8. Nbd2 {[%clk 0:02:52.5]}
8... c5 {[%clk 0:02:47.2]} 9. e3 {[%clk 0:02:50.6]} 9... cxd4 {[%clk 0:02:46.4]}
10. exd4 {[%clk 0:02:50.1]} 10... Nc6 {[%clk 0:02:43.7]} 11. c4 {[%clk 0:02:51]}
11... Rc8 {[%clk 0:02:41.7]} 12. Ne5 {[%clk 0:02:50.7]} 12... Nxe5 {[%clk
0:02:31.2]} 13. dxe5 {[%clk 0:02:51.6]} 13... Nd7 {[%clk 0:02:31.3]} 14. cxd5
{[%clk 0:02:50.4]} 14... Bxd5 {[%clk 0:02:29.4]} 15. Bxd5 {[%clk 0:02:49.3]}
15... exd5 {[%clk 0:02:30.3]} 16. Nf3 {[%clk 0:02:49.3]} 16... Nc5 {[%clk
0:02:09.5]} 17. Nd4 {[%clk 0:02:46.8]} 17... Qd7 {[%clk 0:02:08.7]} 18. Qf3
{[%clk 0:02:44.5]} 18... Ne6 {[%clk 0:02:05.5]} 19. Nf5 {[%clk 0:02:42.3]} 19...
Rfd8 {[%clk 0:02:03.5]} 20. Rad1 {[%clk 0:02:36.9]} 20... Bf8 {[%clk 0:02:03]}
21. Rd2 {[%clk 0:02:29.6]} 21... g6 {[%clk 0:01:48.4]} 22. Ne3 {[%clk
0:02:26.9]} 22... Bh6 {[%clk 0:01:45.3]} 23. Rxd5 {[%clk 0:02:25.8]} 23... Qe8
{[%clk 0:01:40.8]} 24. Ng4 {[%clk 0:02:20]} 24... Bg7 {[%clk 0:01:37.4]} 25.
Rfd1 {[%clk 0:02:18.7]} 25... Rxd5 {[%clk 0:01:36.9]} 26. Qxd5 {[%clk
0:02:10.7]} 26... Rd8 {[%clk 0:01:22.8]} 27. Qf3 {[%clk 0:02:09.3]} 27... Rxd1+
{[%clk 0:01:22]} 28. Qxd1 {[%clk 0:02:10.2]} 28... h5 {[%clk 0:01:22]} 29. Ne3
{[%clk 0:02:08.7]} 29... Nc5 {[%clk 0:01:18.9]} 30. Qd5 {[%clk 0:02:04]} 30...
Qe7 {[%clk 0:01:11.8]} 31. Nc4 {[%clk 0:01:59.4]} 31... h4 {[%clk 0:01:08.6]}
32. f4 {[%clk 0:01:53.6]} 32... hxg3 {[%clk 0:01:08.3]} 33. hxg3 {[%clk
0:01:54.5]} 33... Ne6 {[%clk 0:00:57.1]} 34. Nd6 {[%clk 0:01:46.3]} 34... Qc7
{[%clk 0:00:52.8]} 35. Qc4 {[%clk 0:01:46]} 35... Qxc4 {[%clk 0:00:44.4]} 36.
Nxc4 {[%clk 0:01:45.1]} 36... Nc5 {[%clk 0:00:41.4]} 37. Kg2 {[%clk 0:01:42.5]}
37... Kf8 {[%clk 0:00:34.5]} 38. Kf3 {[%clk 0:01:42.2]} 38... Ke7 {[%clk
0:00:33.4]} 39. Bd4 {[%clk 0:01:42.4]} 39... Ne6 {[%clk 0:00:32.2]} 40. Ke4
{[%clk 0:01:42.6]} 40... f5+ {[%clk 0:00:26.7]} 41. exf6+ {[%clk 0:01:31.3]}
41... Bxf6 {[%clk 0:00:26.3]} 42. Bxf6+ {[%clk 0:01:32.2]} 42... Kxf6 {[%clk
0:00:26.3]} 43. Nd6 {[%clk 0:01:33.1]} 43... Nc5+ {[%clk 0:00:24.6]} 44. Kd5
{[%clk 0:01:32.4]} 44... g5 {[%clk 0:00:24.2]} 45. Ne4+ {[%clk 0:01:31.6]} 45...
Nxe4 {[%clk 0:00:21.6]} 46. Kxe4 {[%clk 0:01:32.5]} 46... gxf4 {[%clk
0:00:21.2]} 47. gxf4 {[%clk 0:01:33.4]} 47... b5 {[%clk 0:00:21.1]} 48. Kd5
{[%clk 0:01:26.2]} 48... Kf5 {[%clk 0:00:21.2]} 49. Kc5 {[%clk 0:01:26.8]} 49...
Kxf4 {[%clk 0:00:21.8]} 50. Kxb5 {[%clk 0:01:27.1]} 50... Ke5 {[%clk 0:00:22.7]}
51. Ka6 {[%clk 0:01:27.8]} 51... Kd6 {[%clk 0:00:23.6]} 52. Kxa7 {[%clk
0:01:28.7]} 52... Kc7 {[%clk 0:00:24.1]} 53. Ka6 {[%clk 0:01:29.3]} 53... Kb8
{[%clk 0:00:24.3]} 54. b4 {[%clk 0:01:30.2]} 54... Ka8 {[%clk 0:00:25]} 55. b5
{[%clk 0:01:31.1]} 55... Kb8 {[%clk 0:00:25.9]} 56. b6 {[%clk 0:01:32]} 56...
Ka8 {[%clk 0:00:26.8]} 57. a4 {[%clk 0:01:32.9]} 57... Kb8 {[%clk 0:00:27.7]}
58. a5 {[%clk 0:01:33.8]} 58... Ka8 {[%clk 0:00:28.4]} 59. Kb5 {[%clk
0:01:33.9]} 59... Kb8 {[%clk 0:00:29.3]} 60. a6 {[%clk 0:01:34.6]} 60... Ka8
{[%clk 0:00:29.8]} 61. Kc6 {[%clk 0:01:34.7]} 61... Kb8 {[%clk 0:00:30.7]} 62.
Kd6 {[%clk 0:01:32.2]} 62... Ka8 {[%clk 0:00:29.7]} 63. b7+ {[%clk 0:01:32.7]}
63... Ka7 {[%clk 0:00:28.9]} 64. Kc7 {[%clk 0:01:32.7]} 64... Kxa6 {[%clk
0:00:29]} 65. b8=Q {[%clk 0:01:33.6]} 65... Ka5 {[%clk 0:00:29]} 66. Qb7 {[%clk
0:01:34.5]} 66... Ka4 {[%clk 0:00:29.1]} 67. Qb6 {[%clk 0:01:35.4]} 67... Ka3
{[%clk 0:00:29.5]} 68. Qb5 {[%clk 0:01:36.3]} 68... Ka2 {[%clk 0:00:30]} 69. Qb4
{[%clk 0:01:36.5]} 69... Ka1 {[%clk 0:00:30.5]} 70. Kc6 {[%clk 0:01:37]} 70...
Ka2 {[%clk 0:00:30.9]} 71. Kc5 {[%clk 0:01:37.9]} 71... Ka1 {[%clk 0:00:31.8]}
72. Kc4 {[%clk 0:01:38.8]} 72... Ka2 {[%clk 0:00:32.6]} 73. Kc3 {[%clk
0:01:39.7]} 73... Ka1 {[%clk 0:00:33.5]} 74. Qb2# {[%clk 0:01:39.9]} 1-0

[Event "Late-Titled-Tuesday-Blitz-May-28-2024"]
[Site "Chess.com"]
[Date "2024.05.28"]
[Round "7"]
[White "Love7Unicorn"]
[Black "Viktor_Poddubnyi"]
[Result "1-0"]
[WhiteElo "2536"]
[BlackElo "2329"]
[TimeControl "180+1"]
[EndTime "15:17:04 PDT"]
[Termination "Love7Unicorn won by checkmate"]

1. d4 {[%clk 0:02:50.8]} 1... g6 {[%clk 0:02:59.7]} 2. c4 {[%clk 0:02:49.4]}
2... Bg7 {[%clk 0:02:59.4]} 3. e4 {[%clk 0:02:49.6]} 3... Nc6 {[%clk 0:02:58.7]}
4. Be3 {[%clk 0:02:49.3]} 4... e5 {[%clk 0:02:58.5]} 5. Ne2 {[%clk 0:02:45.3]}
5... exd4 {[%clk 0:02:56.5]} 6. Nxd4 {[%clk 0:02:46.2]} 6... Qf6 {[%clk
0:02:56.6]} 7. Nxc6 {[%clk 0:02:34.6]} 7... dxc6 {[%clk 0:02:56.2]} 8. Nc3
{[%clk 0:02:32.1]} 8... Qe7 {[%clk 0:02:54.1]} 9. Bd3 {[%clk 0:02:16]} 9... Be6
{[%clk 0:02:32]} 10. Qb3 {[%clk 0:02:09.3]} 10... O-O-O {[%clk 0:02:20.3]} 11.
O-O-O {[%clk 0:02:08.4]} 11... a6 {[%clk 0:02:18.4]} 12. Na4 {[%clk 0:02:01.7]}
12... Bh6 {[%clk 0:01:34.4]} 13. f4 {[%clk 0:01:45.5]} 13... b5 {[%clk
0:01:10.4]} 14. Nc5 {[%clk 0:01:02.3]} 14... Bxf4 {[%clk 0:01:06.7]} 15. Bxf4
{[%clk 0:01:01.8]} 15... Qxc5 {[%clk 0:01:06.1]} 16. Qc3 {[%clk 0:01:02.4]}
16... Ne7 {[%clk 0:00:51.4]} 17. Kb1 {[%clk 0:00:52.4]} 17... f5 {[%clk
0:00:28.2]} 18. Qa5 {[%clk 0:00:44.1]} 18... Qb6 {[%clk 0:00:18.9]} 19. Qc3
{[%clk 0:00:20.8]} 19... fxe4 {[%clk 0:00:17.4]} 20. Bxe4 {[%clk 0:00:17.4]}
20... Bf5 {[%clk 0:00:15.5]} 21. Bxf5+ {[%clk 0:00:10.7]} 21... Nxf5 {[%clk
0:00:16.4]} 22. c5 {[%clk 0:00:11.3]} 22... b4 {[%clk 0:00:13.3]} 23. Qe5 {[%clk
0:00:04.4]} 23... Qb5 {[%clk 0:00:12.8]} 24. Qxc7# {[%clk 0:00:04.4]} 1-0

[Event "Late-Titled-Tuesday-Blitz-May-28-2024"]
[Site "Chess.com"]
[Date "2024.05.28"]
[Round "7"]
[White "GMTalks_Youtube"]
[Black "manitodeplomo"]
[Result "0-1"]
[WhiteElo "2746"]
[BlackElo "2537"]
[TimeControl "180+1"]
[EndTime "15:17:10 PDT"]
[Termination "manitodeplomo won by resignation"]

1. e4 {[%clk 0:03:00.9]} 1... c5 {[%clk 0:02:56]} 2. Nf3 {[%clk 0:03:00.5]} 2...
e6 {[%clk 0:02:56.1]} 3. d3 {[%clk 0:02:59.9]} 3... b6 {[%clk 0:02:55.4]} 4. g3
{[%clk 0:02:59.6]} 4... Bb7 {[%clk 0:02:55.9]} 5. Bg2 {[%clk 0:03:00.1]} 5... d6
{[%clk 0:02:56.6]} 6. O-O {[%clk 0:03:00.4]} 6... Nd7 {[%clk 0:02:54.1]} 7. Nc3
{[%clk 0:02:51.1]} 7... Ngf6 {[%clk 0:02:52.8]} 8. Ng5 {[%clk 0:02:50.4]} 8...
h6 {[%clk 0:02:49.8]} 9. Nh3 {[%clk 0:02:50.1]} 9... Be7 {[%clk 0:02:47.4]} 10.
f4 {[%clk 0:02:49.3]} 10... e5 {[%clk 0:02:28.2]} 11. a4 {[%clk 0:02:32]} 11...
a6 {[%clk 0:02:27.8]} 12. f5 {[%clk 0:02:22]} 12... Bc6 {[%clk 0:02:17.8]} 13.
g4 {[%clk 0:02:13.2]} 13... b5 {[%clk 0:02:15]} 14. Nf2 {[%clk 0:01:50.8]} 14...
bxa4 {[%clk 0:01:47.2]} 15. Nxa4 {[%clk 0:01:46.2]} 15... a5 {[%clk 0:01:37.4]}
16. Nc3 {[%clk 0:01:40.1]} 16... a4 {[%clk 0:01:32.6]} 17. Nd5 {[%clk
0:01:35.4]} 17... Bxd5 {[%clk 0:01:30.5]} 18. exd5 {[%clk 0:01:34.3]} 18... Qa5
{[%clk 0:01:22.7]} 19. c3 {[%clk 0:01:27.2]} 19... O-O {[%clk 0:01:19.3]} 20. g5
{[%clk 0:01:13.1]} 20... hxg5 {[%clk 0:01:18]} 21. Bxg5 {[%clk 0:01:13.7]} 21...
Rfb8 {[%clk 0:01:18.2]} 22. Bc1 {[%clk 0:01:12.4]} 22... Qb5 {[%clk 0:01:05.4]}
23. Ra3 {[%clk 0:01:04.7]} 23... c4 {[%clk 0:01:00.7]} 24. dxc4 {[%clk
0:01:02.4]} 24... Qxc4 {[%clk 0:01:00]} 25. Re1 {[%clk 0:00:43.7]} 25... Nc5
{[%clk 0:00:56]} 26. Qe2 {[%clk 0:00:37.1]} 26... Qh4 {[%clk 0:00:52.7]} 27. c4
{[%clk 0:00:33.2]} 27... Rb3 {[%clk 0:00:43.8]} 28. Be3 {[%clk 0:00:25]} 28...
Nfd7 {[%clk 0:00:40.7]} 29. Rxb3 {[%clk 0:00:21.7]} 29... axb3 {[%clk 0:00:39]}
30. Rf1 {[%clk 0:00:15.3]} 30... Ra2 {[%clk 0:00:35.7]} 31. Bc1 {[%clk 0:00:15]}
31... Bg5 {[%clk 0:00:35]} 32. Bxg5 {[%clk 0:00:13.1]} 32... Qxg5 {[%clk
0:00:34.8]} 33. Kh1 {[%clk 0:00:13.6]} 33... Qxf5 {[%clk 0:00:32.1]} 34. Bh3
{[%clk 0:00:11.3]} 34... Qc2 {[%clk 0:00:31]} 0-1

[Event "Late-Titled-Tuesday-Blitz-May-28-2024"]
[Site "Chess.com"]
[Date "2024.05.28"]
[Round "7"]
[White "AldokhinIvan"]
[Black "stollenmonster"]
[Result "1-0"]
[WhiteElo "2648"]
[BlackElo "2834"]
[TimeControl "180+1"]
[EndTime "15:17:20 PDT"]
[Termination "AldokhinIvan won by resignation"]

1. e4 {[%clk 0:03:00.9]} 1... c5 {[%clk 0:02:59.6]} 2. Nf3 {[%clk 0:03:01.1]}
2... Nf6 {[%clk 0:02:59.7]} 3. Nc3 {[%clk 0:03:00.2]} 3... d5 {[%clk 0:02:59.4]}
4. exd5 {[%clk 0:02:47.6]} 4... Nxd5 {[%clk 0:03:00.3]} 5. Bb5+ {[%clk
0:02:44.1]} 5... Bd7 {[%clk 0:03:00.3]} 6. Ne5 {[%clk 0:02:40.4]} 6... e6 {[%clk
0:02:59.8]} 7. Nxd7 {[%clk 0:02:35.2]} 7... Nxd7 {[%clk 0:02:59.5]} 8. Nxd5
{[%clk 0:02:30.8]} 8... exd5 {[%clk 0:03:00.4]} 9. O-O {[%clk 0:02:30.1]} 9...
a6 {[%clk 0:03:00.4]} 10. Re1+ {[%clk 0:02:14.4]} 10... Be7 {[%clk 0:03:00.1]}
11. Be2 {[%clk 0:02:15.1]} 11... O-O {[%clk 0:02:54.5]} 12. Bf3 {[%clk
0:02:15.7]} 12... Nf6 {[%clk 0:02:47.5]} 13. d4 {[%clk 0:02:14.7]} 13... c4
{[%clk 0:02:46.9]} 14. Bg5 {[%clk 0:02:11.4]} 14... Qd7 {[%clk 0:02:46.6]} 15.
Re5 {[%clk 0:02:08.2]} 15... Rfe8 {[%clk 0:02:38.7]} 16. Bxf6 {[%clk 0:02:05.4]}
16... Bxf6 {[%clk 0:02:39.6]} 17. Rxd5 {[%clk 0:02:05.8]} 17... Qe7 {[%clk
0:02:33.4]} 18. c3 {[%clk 0:02:03.7]} 18... b5 {[%clk 0:02:28.6]} 19. g3 {[%clk
0:01:58.2]} 19... Rab8 {[%clk 0:02:27.9]} 20. a3 {[%clk 0:01:57.4]} 20... g6
{[%clk 0:02:24.7]} 21. h4 {[%clk 0:01:54.9]} 21... Bg7 {[%clk 0:02:18.6]} 22. h5
{[%clk 0:01:52.6]} 22... Rb6 {[%clk 0:02:18.6]} 23. Qf1 {[%clk 0:01:44.3]} 23...
Re6 {[%clk 0:02:17.5]} 24. a4 {[%clk 0:01:34.8]} 24... Qf6 {[%clk 0:02:08.3]}
25. Kg2 {[%clk 0:01:31.6]} 25... Rb6 {[%clk 0:01:33.8]} 26. axb5 {[%clk
0:01:28.7]} 26... axb5 {[%clk 0:01:34.7]} 27. Ra5 {[%clk 0:01:27]} 27... Reb8
{[%clk 0:01:29.5]} 28. Ra7 {[%clk 0:01:23.9]} 28... Bh6 {[%clk 0:01:25.5]} 29.
Rdd7 {[%clk 0:01:20.7]} 29... Rf8 {[%clk 0:01:04.2]} 30. Bd5 {[%clk 0:01:16.5]}
30... Qg5 {[%clk 0:01:04.1]} 31. hxg6 {[%clk 0:01:08]} 31... hxg6 {[%clk
0:01:02.7]} 32. Bxf7+ {[%clk 0:00:31.1]} 32... Rxf7 {[%clk 0:00:59.1]} 33. Rxf7
{[%clk 0:00:30.9]} 33... Re6 {[%clk 0:00:58.9]} 34. Qd1 {[%clk 0:00:16.2]} 34...
b4 {[%clk 0:00:23.2]} 35. Qf3 {[%clk 0:00:15.5]} 35... Re8 {[%clk 0:00:21.7]}
36. Rg7+ {[%clk 0:00:13.4]} 1-0

[Event "Late-Titled-Tuesday-Blitz-May-28-2024"]
[Site "Chess.com"]
[Date "2024.05.28"]
[Round "7"]
[White "TigrVShlyape"]
[Black "Goryachkina"]
[Result "1-0"]
[WhiteElo "2914"]
[BlackElo "2719"]
[TimeControl "180+1"]
[EndTime "15:17:21 PDT"]
[Termination "TigrVShlyape won by resignation"]

1. d4 {[%clk 0:02:44.8]} 1... d5 {[%clk 0:02:59.2]} 2. Bf4 {[%clk 0:02:42.4]}
2... c5 {[%clk 0:02:57.3]} 3. e3 {[%clk 0:02:42.6]} 3... Nc6 {[%clk 0:02:56.6]}
4. c3 {[%clk 0:02:43]} 4... Nf6 {[%clk 0:02:49.9]} 5. Nd2 {[%clk 0:02:42.7]}
5... Bf5 {[%clk 0:02:29.3]} 6. Ngf3 {[%clk 0:02:36.7]} 6... e6 {[%clk 0:02:27]}
7. Bb5 {[%clk 0:02:35.6]} 7... Nd7 {[%clk 0:02:20.9]} 8. Qa4 {[%clk 0:02:32.6]}
8... Qc8 {[%clk 0:02:12.5]} 9. O-O {[%clk 0:02:12.6]} 9... Be7 {[%clk
0:02:09.3]} 10. Rfe1 {[%clk 0:01:51.8]} 10... O-O {[%clk 0:01:54.7]} 11. Rac1
{[%clk 0:01:49.7]} 11... a6 {[%clk 0:01:42.1]} 12. Bf1 {[%clk 0:01:42.6]} 12...
Bg6 {[%clk 0:01:34.6]} 13. h3 {[%clk 0:01:39.7]} 13... b5 {[%clk 0:01:26.2]} 14.
Qd1 {[%clk 0:01:38.9]} 14... Qb7 {[%clk 0:01:25.7]} 15. g4 {[%clk 0:01:33.4]}
15... c4 {[%clk 0:01:04.4]} 16. Bg2 {[%clk 0:01:27.3]} 16... b4 {[%clk
0:00:56.4]} 17. e4 {[%clk 0:01:26.6]} 17... Rfe8 {[%clk 0:00:46.2]} 18. h4
{[%clk 0:01:19.2]} 18... Bxe4 {[%clk 0:00:38.2]} 19. Nxe4 {[%clk 0:01:18.5]}
19... dxe4 {[%clk 0:00:38.3]} 20. Rxe4 {[%clk 0:01:17.5]} 20... Nf6 {[%clk
0:00:37]} 21. Re1 {[%clk 0:01:16.5]} 21... Nxg4 {[%clk 0:00:29.7]} 22. d5 {[%clk
0:01:08.3]} 22... exd5 {[%clk 0:00:20.9]} 23. Qxd5 {[%clk 0:01:08.3]} 23... Qb5
{[%clk 0:00:10.9]} 24. Ng5 {[%clk 0:01:00.2]} 24... Bxg5 {[%clk 0:00:05.8]} 25.
hxg5 {[%clk 0:00:58.4]} 25... Qb6 {[%clk 0:00:05.8]} 26. Bg3 {[%clk 0:00:55.1]}
26... Rec8 {[%clk 0:00:04.6]} 27. Bh3 {[%clk 0:00:45.7]} 27... h5 {[%clk
0:00:04.5]} 28. gxh6 {[%clk 0:00:45.6]} 28... Nxh6 {[%clk 0:00:04.9]} 29. Bxc8
{[%clk 0:00:44.8]} 29... Rxc8 {[%clk 0:00:05.8]} 30. Re4 {[%clk 0:00:41.4]}
30... Qb5 {[%clk 0:00:03.1]} 31. Rd1 {[%clk 0:00:40]} 31... Qxd5 {[%clk
0:00:02.8]} 32. Rxd5 {[%clk 0:00:39.4]} 32... bxc3 {[%clk 0:00:02.9]} 33. bxc3
{[%clk 0:00:39.1]} 33... Na7 {[%clk 0:00:03.3]} 34. a4 {[%clk 0:00:38.2]} 34...
Rf8 {[%clk 0:00:02]} 35. Rxc4 {[%clk 0:00:37]} 35... f5 {[%clk 0:00:02.4]} 36.
Rc7 {[%clk 0:00:34.1]} 36... Nc8 {[%clk 0:00:01.7]} 37. Rdd7 {[%clk 0:00:33.5]}
37... Nf7 {[%clk 0:00:02.2]} 38. Rxf7 {[%clk 0:00:33.4]} 38... Rxf7 {[%clk
0:00:01.8]} 39. Rxc8+ {[%clk 0:00:33.7]} 39... Kh7 {[%clk 0:00:02.7]} 40. Be5
{[%clk 0:00:33.6]} 40... Re7 {[%clk 0:00:02.8]} 41. f4 {[%clk 0:00:33.4]} 1-0